fUSD/lending_fUSD_20240827
["ID","MTS","AMOUNT","RATE_DAILY","PERIOD"]
[336388385,1724800276465,-833.93,0.00010999,2]
[336388386,1724800276474,-833.93,0.00010999,2]
[336388387,1724800276484,-833.93,0.00010999,2]
[336388388,1724800276493,-833.93,0.00010999,2]
[336388389,1724800276503,-833.93,0.00010999,2]
[336388390,1724800276514,-833.93,0.00010999,2]
[336388391,1724800276524,-833.98535066,0.00010999,2]
[336388392,1724800276535,-500.0,0.00010999,2]
[336388393,1724800276546,-500.0,0.00010999,2]
[336388394,1724800276557,-500.0,0.00010999,2]
[336388395,1724800276569,-500.0,0.00010999,2]
[336388396,1724800276580,-500.0,0.00010999,2]
[336388397,1724800276590,-500.0,0.00010999,2]
[336388398,1724800276599,-500.0,0.00010999,2]
[336388399,1724800276608,-317.73,0.00010999,2]
[336388400,1724800276618,-13324700.39717087,0.00011,2]
[336388401,1724800276627,-250.0,0.00011,2]
[336388402,1724800276636,-259567.10445869,0.00011,2]
[336388403,1724800276859,-3291.39065368,0.00011,2]
[336388404,1724800276889,-1636.65,0.00010998,2]
[336388405,1724800276898,-1706.8,0.00010998,2]
[336388406,1724800276908,-1156315.16328137,0.00011,2]
[336388407,1724800276919,-24001.74223655,0.00011,2]
[336388408,1724800276930,-678.75769103,0.00011,2]
[336388409,1724800276941,-607.5499219,0.00011,2]
[336388410,1724800276952,-644.10641409,0.00011,2]
[336388411,1724800276963,-330.62826827,0.00011,2]
[336388412,1724800276974,-891.51412651,0.00011,2]
[336388413,1724800276985,-1367.59375518,0.00011,2]
[336388414,1724800276997,-392.85540526,0.00011,2]
[336388415,1724800277007,-42222.75,0.00011,2]
[336388416,1724800277018,-15240.96322548,0.00011,2]
[336388417,1724800277376,-17839.21783682,0.00010758,2]
[336388418,1724800277388,-9741.68889421,0.00010758,2]
[336388419,1724800277399,-6075.42981808,0.00010758,2]
[336388420,1724800277411,-1018.6644917,0.00010758,2]
[336388421,1724800277422,-11904.2,0.00010758,2]
[336388422,1724800277433,-800.90047991,0.00010758,2]
[336388423,1724800277453,-11339.79333542,0.00010758,2]
[336388424,1724800277464,-832.28687525,0.00010758,2]
[336388425,1724800277475,-3401.48620004,0.00010758,2]
[336388426,1724800277487,-423.02714419,0.00010758,2]
[336388427,1724800277498,-636.82035561,0.00010758,2]
[336388428,1724800277509,-696.09888832,0.00010758,2]
[336388429,1724800277521,-1233.34362548,0.00010758,2]
[336388430,1724800277778,-34057.04205497,0.00010758,2]
[336388431,1724800277788,-3444.90703308,0.00010836,2]
[336388432,1724800277797,-500.0,0.00010958,2]
[336388433,1724800277807,-500.0,0.00010958,2]
[336388434,1724800277818,-500.0,0.00010958,2]
[336388435,1724800277827,-500.0,0.00010958,2]
[336388436,1724800277835,-500.0,0.00010992,2]
[336388437,1724800277845,-500.0,0.00010996,2]
[336388438,1724800277855,-232.2,0.00010998,2]
[336388439,1724800277865,-1706.8,0.00010998,2]
[336388440,1724800277874,-1636.65,0.00010999,2]
[336388441,1724800277883,-1636.65,0.00010999,2]
[336388442,1724800277893,-1706.8,0.00010999,2]
[336388443,1724800277903,-1706.8,0.00010999,2]
[336388444,1724800277912,-1706.8,0.00010999,2]
[336388445,1724800277921,-1636.65,0.00010999,2]
[336388446,1724800277930,-1706.8,0.00010999,2]
[336388447,1724800277939,-1636.65,0.00010999,2]
[336388448,1724800277948,-1706.8,0.00010999,2]
[336388449,1724800277957,-1636.65,0.00010999,2]
[336388450,1724800277967,-1706.8,0.00010999,2]
[336388451,1724800277975,-1636.65,0.00010999,2]
[336388452,1724800277986,-1706.8,0.00010999,2]
[336388453,1724800277996,-1636.65,0.00010999,2]
[336388454,1724800278006,-1706.8,0.00010999,2]
[336388455,1724800278015,-1706.8,0.00010999,2]
[336388456,1724800278024,-672.61471589,0.00010999,2]
[336388457,1724800278059,-500.0,0.00010996,2]
[336388458,1724800278070,-964.03528411,0.00010999,2]
[336388459,1724800278079,-1466.48864727,0.00010999,2]
[336388460,1724800278090,-240.31135273,0.00010999,2]
[336388461,1724800278101,-13.20864727,0.00010999,2]
[336388462,1724800278113,-1623.44135273,0.00010999,2]
[336388463,1724800278122,-1521.31461376,0.00010999,2]
[336388464,1724800278134,-185.48538624,0.00010999,2]
[336388465,1724800278143,-1297.10461376,0.00010999,2]
[336388466,1724800278169,-339.54538624,0.00010999,2]
[336388467,1724800278179,-1706.86510649,0.00010999,2]
[336388468,1724800278188,-1636.65,0.00010999,2]
[336388469,1724800278198,-1636.72573798,0.00010999,2]
[336388470,1724800278207,-20630.64846459,0.00011,2]
[336388471,1724800294406,400.0,9.864e-05,2]
[336388481,1724800405645,500.0,0.00024932,120]
[336388482,1724800405762,243.56,9.811e-05,2]
[336388483,1724800407092,16586.93,9.811e-05,2]
[336388484,1724800419976,173.77,9.811e-05,2]
[336388485,1724800440495,250.0,9.809e-05,2]
[336388486,1724800445384,500.0,0.00025,120]
[336388487,1724800445670,500.27435162,0.00025,120]
[336388488,1724800474873,500.0,0.00025,120]
[336388489,1724800475357,500.0,0.00025,120]
[336388490,1724800475640,500.0,0.00025,120]
[336388491,1724800482234,1755.67,0.00025,120]
[336388492,1724800482524,1755.67,0.00025,120]
[336388493,1724800483076,1755.67,0.00025,120]
[336388494,1724800483374,1755.67,0.00025,120]
[336388495,1724800483650,1755.67,0.00025,120]
[336388496,1724800483920,1755.67,0.00025,120]
[336388497,1724800484321,1755.67,0.00025,120]
[336388498,1724800484481,1755.67,0.00025,120]
[336388499,1724800484765,1755.67,0.00025,120]
[336388500,1724800485004,1755.67,0.00025,120]
[336388501,1724800485325,1755.67,0.00025,120]
[336388502,1724800485617,1755.67,0.00025,120]
[336388503,1724800485906,1755.67,0.00025,120]
[336388504,1724800486219,1755.67,0.00025,120]
[336388505,1724800486469,1755.67,0.00025,120]
[336388506,1724800486730,1755.67,0.00025,120]
[336388507,1724800487011,1755.67,0.00025,120]
[336388508,1724800487267,1755.67,0.00025,120]
[336388509,1724800487319,458.98373882,0.00025,120]
[336388510,1724800487551,1755.67,0.00025,120]
[336388511,1724800487827,1755.67,0.00025,120]
[336388512,1724800488083,1755.67,0.00025,120]
[336388513,1724800488356,1755.67,0.00025,120]
[336388514,1724800488642,1755.67,0.00025,120]
[336388515,1724800488897,1755.71820553,0.00025,120]
[336388516,1724800504888,1500.0,0.00025,120]
[336388517,1724800505009,287.83915163,0.00025,120]
[336388518,1724800516011,500.0,0.00025,120]
[336388519,1724800516321,500.0,0.00025,120]
[336388520,1724800516596,577.4947293,0.00025,120]
[336388521,1724800544358,500.0,0.00025,120]
[336388522,1724800544628,500.0,0.00025,120]
[336388523,1724800544887,500.0,0.00025,120]
[336388524,1724800545165,500.0,0.00025,120]
[336388525,1724800545451,500.0,0.00025,120]
[336388526,1724800545704,500.0,0.00025,120]
[336388527,1724800545965,500.0,0.00025,120]
[336388528,1724800546271,500.0,0.00025,120]
[336388529,1724800546697,500.0,0.00025,120]
[336388530,1724800546803,230.77,0.00025,120]
[336388531,1724800597664,500.0,0.00025,120]
[336388532,1724800597925,500.0,0.00025,120]
[336388533,1724800598183,500.0,0.00025,120]
[336388534,1724800598617,427.44532603,0.00025,120]
[336388535,1724800614990,500.0,0.00025,120]
[336388536,1724800615293,500.0,0.00025,120]
[336388537,1724800615561,500.0,0.00025,120]
[336388538,1724800615894,500.0,0.00025,120]
[336388539,1724800616155,500.0,0.00025,120]
[336388540,1724800616562,191.97,0.00025,120]
[336388544,1724800624186,500.0,0.00025,120]
[336388545,1724800624344,500.0,0.00025,120]
[336388546,1724800624501,500.0,0.00025,120]
[336388547,1724800624620,500.0,0.00025,120]
[336388548,1724800624763,500.0,0.00025,120]
[336388549,1724800624915,500.0,0.00025,120]
[336388550,1724800625097,500.0,0.00025,120]
[336388551,1724800625195,500.0,0.00025,120]
[336388552,1724800625380,500.0,0.00025,120]
[336388553,1724800625499,500.0,0.00025,120]
[336388554,1724800625651,500.0,0.00025,120]
[336388555,1724800625779,500.0,0.00025,120]
[336388556,1724800625930,500.0,0.00025,120]
[336388557,1724800626102,500.0,0.00025,120]
[336388558,1724800626370,500.0,0.00025,120]
[336388559,1724800626542,500.0,0.00025,120]
[336388560,1724800626647,500.0,0.00025,120]
[336388561,1724800626854,500.0,0.00025,120]
[336388562,1724800626911,500.0,0.00025,120]
[336388563,1724800627131,500.0,0.00025,120]
[336388564,1724800627188,500.0,0.00025,120]
[336388565,1724800627401,281.85598119,0.00025,120]
[336388566,1724800627481,475.00547882,0.00025,120]
[336388567,1724800634691,1000.0,0.00025,120]
[336388568,1724800634939,1000.0,0.00025,120]
[336388569,1724800635217,1000.0,0.00025,120]
[336388570,1724800635490,1003.26901208,0.00025,120]
[336388575,1724800648717,500.0,0.00025,120]
[336388576,1724800649054,500.0,0.00025,120]
[336388577,1724800649262,500.0,0.00025,120]
[336388578,1724800649537,504.24514564,0.00025,120]
[336388589,1724800685765,514.71,0.00025,120]
[336388590,1724800686065,514.71,0.00025,120]
[336388591,1724800686343,514.71,0.00025,120]
[336388592,1724800686635,514.71,0.00025,120]
[336388593,1724800686887,514.71,0.00025,120]
[336388594,1724800687180,514.71,0.00025,120]
[336388595,1724800687239,500.0,0.00025,120]
[336388596,1724800687497,514.71,0.00025,120]
[336388597,1724800687560,500.0,0.00025,120]
[336388598,1724800687752,514.71,0.00025,120]
[336388599,1724800687809,500.0,0.00025,120]
[336388600,1724800688017,514.71,0.00025,120]
[336388601,1724800688073,440.78778115,0.00025,120]
[336388602,1724800688268,514.71,0.00025,120]
[336388603,1724800688519,514.71,0.00025,120]
[336388604,1724800688788,514.71,0.00025,120]
[336388605,1724800689047,514.71,0.00025,120]
[336388606,1724800689455,514.71,0.00025,120]
[336388607,1724800689732,514.71,0.00025,120]
[336388608,1724800690027,514.71,0.00025,120]
[336388609,1724800690319,514.71,0.00025,120]
[336388610,1724800690628,514.71,0.00025,120]
[336388611,1724800691357,514.71,0.00025,120]
[336388612,1724800691440,514.71,0.00025,120]
[336388613,1724800691693,514.71,0.00025,120]
[336388614,1724800691957,514.71,0.00025,120]
[336388615,1724800692223,514.71,0.00025,120]
[336388616,1724800692493,514.79515491,0.00025,120]
[336388617,1724800700572,600.0,0.00025,120]
[336388618,1724800700834,600.0,0.00025,120]
[336388619,1724800701250,600.0,0.00025,120]
[336388620,1724800701542,600.0,0.00025,120]
[336388621,1724800701844,600.0,0.00025,120]
[336388622,1724800702112,600.0,0.00025,120]
[336388623,1724800702407,600.0,0.00025,120]
[336388624,1724800702674,600.0,0.00025,120]
[336388625,1724800702958,600.0,0.00025,120]
[336388629,1724800703239,600.0,0.00025,120]
[336388630,1724800703528,600.0,0.00025,120]
[336388631,1724800703952,600.0,0.00025,120]
[336388632,1724800704214,600.0,0.00025,120]
[336388633,1724800704479,600.0,0.00025,120]
[336388634,1724800704743,600.0,0.00025,120]
[336388635,1724800705038,600.0,0.00025,120]
[336388636,1724800705306,600.0,0.00025,120]
[336388637,1724800705612,607.5362276,0.00025,120]
[336388638,1724800713323,443.96,8.219e-05,2]
[336388639,1724800713760,763.83,0.00025,120]
[336388640,1724800714016,763.83,0.00025,120]
[336388641,1724800714457,763.83,0.00025,120]
[336388642,1724800714922,763.83,0.00025,120]
[336388643,1724800715205,763.83,0.00025,120]
[336388644,1724800715520,763.83,0.00025,120]
[336388645,1724800715819,763.83,0.00025,120]
[336388646,1724800716307,763.83,0.00025,120]
[336388647,1724800716943,763.83,0.00025,120]
[336388648,1724800717218,763.83,0.00025,120]
[336388649,1724800717499,763.83,0.00025,120]
[336388650,1724800717772,763.83,0.00025,120]
[336388651,1724800718036,763.83,0.00025,120]
[336388652,1724800718371,763.83,0.00025,120]
[336388653,1724800718648,763.83,0.00025,120]
[336388654,1724800718917,763.83,0.00025,120]
[336388655,1724800719224,763.83,0.00025,120]
[336388656,1724800719500,763.83,0.00025,120]
[336388657,1724800719768,763.83,0.00025,120]
[336388658,1724800720054,763.83,0.00025,120]
[336388659,1724800720314,763.83,0.00025,120]
[336388660,1724800720574,763.83,0.00025,120]
[336388661,1724800720974,763.83,0.00025,120]
[336388662,1724800721260,763.93459191,0.00025,120]
[336388663,1724800757443,186.66,9.772e-05,2]
[336388664,1724800778740,680.0,9.77e-05,2]
[336388665,1724800782032,2714.065,9.9e-05,2]
[336388666,1724800791898,547.52769148,0.00025,120]
[336388667,1724800797838,7045.0,9.767e-05,2]
[336388668,1724800807060,500.0,0.00025,120]
[336388669,1724800807369,500.0,0.00025,120]
[336388670,1724800807651,638.3892488,0.00025,120]
[336388671,1724800840504,500.0,0.00025,120]
[336388672,1724800840831,181.57,0.00025,120]
[336388673,1724800855414,500.0,0.00025,120]
[336388674,1724800855690,500.0,0.00025,120]
[336388675,1724800855971,369.53043943,0.00025,120]
[336388676,1724800856926,367.98,0.00025,120]
[336388677,1724800864769,500.0,0.00025,120]
[336388678,1724800865041,500.0,0.00025,120]
[336388679,1724800865299,500.0,0.00025,120]
[336388680,1724800865571,500.0,0.00025,120]
[336388681,1724800865846,500.0,0.00025,120]
[336388682,1724800866116,500.0,0.00025,120]
[336388683,1724800866382,266.73335999,0.00025,120]
[336388684,1724800867792,196.56,7.02e-05,2]
[336388685,1724800879991,500.0,0.00025,120]
[336388686,1724800880320,500.0,0.00025,120]
[336388687,1724800924915,500.0,0.00025,120]
[336388688,1724800925167,182.21665074,0.00025,120]
[336388689,1724800929376,500.0,0.00025,120]
[336388690,1724800929675,352.61024964,0.00025,120]
[336388691,1724800941218,500.0,0.00025,120]
[336388692,1724800941527,500.0,0.00025,120]
[336388693,1724800941819,500.0,0.00025,120]
[336388694,1724800942124,500.0,0.00025,120]
[336388695,1724800942393,210.94,0.00025,120]
[336388696,1724801003894,500.0,0.00024932,120]
[336388697,1724801048186,5106.92,9.743e-05,2]
[336388698,1724801058270,250.0,9.741e-05,2]
[336388699,1724801102068,10537.92195993,9.909e-05,2]
[336388700,1724801152646,164.46,9.738e-05,2]
[336388701,1724801165340,500.0,0.00025,120]
[336388702,1724801165636,500.0,0.00025,120]
[336388703,1724801165917,500.0,0.00025,120]
[336388704,1724801166272,500.0,0.00025,120]
[336388705,1724801166556,500.0,0.00025,120]
[336388706,1724801166825,500.0,0.00025,120]
[336388707,1724801167098,500.0,0.00025,120]
[336388708,1724801167418,500.0,0.00025,120]
[336388709,1724801167700,500.0,0.00025,120]
[336388710,1724801167964,500.0,0.00025,120]
[336388711,1724801168229,500.0,0.00025,120]
[336388712,1724801168479,500.0,0.00025,120]
[336388713,1724801168782,500.0,0.00025,120]
[336388714,1724801169054,562.44034678,0.00025,120]
[336388715,1724801215466,442.06,8.219e-05,2]
[336388716,1724801233527,200.0,9.723e-05,2]
[336388724,1724801236791,205.0,9.8e-05,2]
[336388729,1724801309463,521.67695568,9.8e-05,2]
[336388730,1724801326433,155.0,0.00024499,120]
[336388731,1724801333314,4917.78,9.712e-05,2]
[336388756,1724801364992,-155.0,9.929e-05,2]
[336388758,1724801365024,-155.0,9.941e-05,2]
[336388759,1724801365054,-304.58048687,9.943e-05,2]
[336388768,1724801365270,-1050.0,0.0001,2]
[336388769,1724801365301,-640.63258296,0.0001,2]
[336388771,1724801365339,-500.0,0.00010068,2]
[336388773,1724801365370,-597.92868755,0.00010337,2]
[336388778,1724801365587,-3108.07131245,0.00010337,2]
[336388780,1724801365623,-295.07044493,0.00010462,2]
[336388782,1724801365663,-146.98955507,0.00010462,2]
[336388783,1724801365696,-452.77974061,0.00010505,2]
[336388784,1724801365734,-3080.16651598,0.00010505,2]
[336388785,1724801365767,-190.06841136,0.00010505,2]
[336388786,1724801365800,-132.90683004,0.00010629,2]
[336388787,1724801365853,-367.09316996,0.00010629,2]
[336388788,1724801365885,-500.0,0.00010638,2]
[336388789,1724801365916,-500.0,0.00010647,2]
[336388790,1724801365946,-500.0,0.00010656,2]
[336388791,1724801365976,-836.92,0.00010658,2]
[336388792,1724801366008,-500.0,0.00010665,2]
[336388793,1724801366041,-199.12858742,0.00010673,2]
[336388794,1724801366080,-300.87141258,0.00010673,2]
[336388795,1724801366111,-500.0,0.00010682,2]
[336388796,1724801366141,-150.0,0.00010684,2]
[336388797,1724801366172,-442.3726,0.00010685,2]
[336388798,1724801366202,-1238.2426,0.00010685,2]
[336388799,1724801366232,-771.6551448,0.00010685,2]
[336388800,1724801369375,1311.65694169,9.8e-05,2]
[336388801,1724801379920,259.95292392,0.00011879,120]
[336388802,1724801385445,1000.0,9.767e-05,2]
[336388805,1724801398053,959.0,9.909e-05,2]
[336388822,1724801431982,-516.47725402,0.00010026,2]
[336388825,1724801432041,-2519.18979849,0.00010026,2]
[336388826,1724801432051,-208.19045059,0.00010465,2]
[336388827,1724801432060,-348.17734879,0.00010505,2]
[336388828,1724801432070,-155.36400518,0.00010566,2]
[336388829,1724801432079,-330.55308223,0.00010566,2]
[336388830,1724801432089,-500.0,0.00010621,2]
[336388831,1724801432098,-300.0,0.00010684,2]
[336388832,1724801432107,-12021.7298552,0.00010685,2]
[336388833,1724801432117,-500.0,0.00010691,2]
[336388834,1724801432125,-500.0,0.000107,2]
[336388835,1724801432134,-500.0,0.00010709,2]
[336388836,1724801432143,-155.0,0.00010713,2]
[336388837,1724801432152,-310.0,0.00010713,2]
[336388838,1724801432161,-500.0,0.00010717,2]
[336388839,1724801432170,-500.0,0.00010726,2]
[336388840,1724801432180,-1622.52157435,0.00010728,2]
[336388841,1724801432189,-1500.0,0.00010731,2]
[336388842,1724801432198,-500.0,0.00010735,2]
[336388843,1724801432209,-5202.01401295,0.00010738,2]
[336388844,1724801432218,-687.03,0.00010739,2]
[336388845,1724801432228,-500.0,0.00010744,2]
[336388846,1724801432237,-150.0,0.00010751,2]
[336388847,1724801432248,-500.0,0.00010753,2]
[336388848,1724801432257,-1500.0,0.00010753,2]
[336388849,1724801432266,-1500.0,0.00010757,2]
[336388850,1724801432274,-150.0,0.00010757,2]
[336388851,1724801432284,-1000.0,0.00010758,2]
[336388852,1724801432293,-8180.6491,0.00010758,2]
[336388853,1724801432302,-12969.16367538,0.00010758,2]
[336388854,1724801432313,-16152.42322272,0.00010758,2]
[336388855,1724801432324,-8529.42497305,0.00010758,2]
[336388856,1724801432335,-684.71908266,0.00010758,2]
[336388857,1724801432347,-19365.12730444,0.00010758,2]
[336388858,1724801432360,-8311.72992793,0.00010758,2]
[336388859,1724801432375,-33987.41181382,0.00010758,2]
[336388860,1724801432385,-534.5533,0.00010758,2]
[336388861,1724801432395,-1500.0,0.0001076,2]
[336388862,1724801432405,-500.0,0.00010761,2]
[336388863,1724801432415,-500.0,0.0001077,2]
[336388864,1724801432425,-432.52,0.00010773,2]
[336388865,1724801432436,-500.0,0.00010773,2]
[336388866,1724801432445,-500.0,0.00010779,2]
[336388867,1724801432455,-1496.40677321,0.00010785,2]
[336388868,1724801432466,-865.31617129,0.00010785,2]
[336388869,1724801432478,-994.87575444,0.00010785,2]
[336388870,1724801432493,-2053.25173375,0.00010785,2]
[336388871,1724801432504,-502.90722895,0.00010785,2]
[336388872,1724801432515,-1991.81902353,0.00010785,2]
[336388881,1724801438067,-655.43194,0.00010785,2]
[336388882,1724801438078,-563.31326908,0.00010785,2]
[336388883,1724801438089,-428.61941707,0.00010785,2]
[336388884,1724801438100,-867.57638522,0.00010785,2]
[336388885,1724801438115,-815.95389917,0.00010785,2]
[336388886,1724801438126,-7293.58596012,0.00010785,2]
[336388887,1724801438137,-8233.67288528,0.00010785,2]
[336388888,1724801438173,-6022.5791488,0.00010785,2]
[336388889,1724801438183,-1114.47748706,0.00010785,2]
[336388890,1724801438194,-620.0,0.00010785,2]
[336388891,1724801438205,-329.43847413,0.00010785,2]
[336388892,1724801438216,-815.0,0.00010785,2]
[336388893,1724801438227,-2679.42068082,0.00010785,2]
[336388894,1724801438238,-7457.2856901,0.00010785,2]
[336388895,1724801438252,-199199.06807798,0.00010785,2]
[336388896,1724801438262,-500.0,0.00010788,2]
[336388897,1724801438271,-346.19062433,0.00010788,2]
[336388898,1724801438280,-500.0,0.0001079,2]
[336388899,1724801438289,-500.0,0.00010797,2]
[336388900,1724801438298,-500.0,0.00010805,2]
[336388901,1724801438308,-500.0,0.00010814,2]
[336388902,1724801438317,-150.0,0.00010819,2]
[336388903,1724801438326,-500.0,0.00010823,2]
[336388904,1724801438335,-500.0,0.00010832,2]
[336388905,1724801438345,-500.0,0.00010841,2]
[336388906,1724801438354,-185.00290264,0.00010858,2]
[336388907,1724801438363,-455.00039678,0.00010862,2]
[336388908,1724801438375,-150.0,0.0001087,2]
[336388909,1724801438384,-41551.70426865,0.0001088,2]
[336388910,1724801438394,-2591.50526,0.0001089,2]
[336388911,1724801438403,-522.16077607,0.0001089,2]
[336388912,1724801438412,-150.0,0.00010891,2]
[336388913,1724801438422,-167.83894098,0.00010899,2]
[336388914,1724801438431,-167.83894098,0.00010899,2]
[336388915,1724801438441,-167.83894098,0.00010899,2]
[336388916,1724801438450,-195.00444113,0.000109,2]
[336388917,1724801438459,-167.83894098,0.000109,2]
[336388918,1724801438468,-1616.55580869,0.000109,2]
[336388919,1724801438478,-2673.70813719,0.000109,2]
[336388921,1724801438488,-346.19062433,0.000109,2]
[336388923,1724801438497,-150.0,0.00010937,2]
[336388925,1724801438507,-152.62,0.0001094,2]
[336388927,1724801438516,-201.78608961,0.00010941,2]
[336388929,1724801438526,-150.0,0.00010944,2]
[336388930,1724801438535,-215.29269071,0.00010947,2]
[336388932,1724801438544,-150.0,0.00010949,2]
[336388934,1724801438554,-389786.82742934,0.0001095,3]
[336388936,1724801438566,-310.24010705,0.0001095,3]
[336388938,1724801438577,-106885.86143058,0.0001095,3]
[336388940,1724801438589,-1544.35295981,0.0001095,3]
[336388942,1724801438600,-514.74031448,0.0001095,3]
[336388945,1724801438612,-7479.6550083,0.0001095,3]
[336388947,1724801438623,-306.42367944,0.0001095,3]
[336389088,1724801440186,-56665.2370869,0.0001095,3]
[336389094,1724801440237,-1399.85886565,0.0001095,3]
[336389096,1724801440249,-15182.36588571,0.0001095,3]
[336389100,1724801440283,-961.27203814,0.0001095,3]
[336389114,1724801440418,-1600.0,0.0001095,3]
[336389116,1724801440430,-313.87542671,0.0001095,3]
[336389119,1724801440442,-1360.63304316,0.0001095,3]
[336389121,1724801440453,-595.395,0.0001095,3]
[336389123,1724801440468,-81162.0434311,0.0001095,3]
[336389127,1724801440499,-1411.2,0.0001095,3]
[336389130,1724801440511,-1208.40163137,0.0001095,3]
[336389133,1724801440538,-56528.43930243,0.0001095,3]
[336389135,1724801440548,-500.0,0.00010958,2]
[336389137,1724801440558,-500.0,0.00010958,2]
[336389139,1724801440568,-500.0,0.00010958,2]
[336389141,1724801440577,-500.0,0.00010958,2]
[336389143,1724801440587,-500.0,0.00010958,2]
[336389145,1724801440597,-500.0,0.00010958,2]
[336389147,1724801440606,-500.0,0.00010958,2]
[336389149,1724801440616,-500.0,0.00010958,2]
[336389151,1724801440626,-500.0,0.00010958,2]
[336389153,1724801440637,-500.0,0.00010958,2]
[336389155,1724801440647,-500.0,0.00010958,2]
[336389157,1724801440656,-500.0,0.00010958,2]
[336389159,1724801440665,-500.0,0.00010958,2]
[336389161,1724801440675,-500.0,0.00010958,2]
[336389163,1724801440684,-500.0,0.00010958,2]
[336389165,1724801440694,-500.0,0.00010958,2]
[336389167,1724801440704,-500.0,0.00010958,2]
[336389169,1724801440713,-500.0,0.00010958,2]
[336389171,1724801440723,-500.0,0.00010958,2]
[336389173,1724801440732,-500.0,0.00010958,2]
[336389175,1724801440742,-500.0,0.00010958,2]
[336389177,1724801440751,-500.0,0.00010958,2]
[336389179,1724801440765,-500.0,0.00010958,2]
[336389181,1724801440774,-500.0,0.00010958,2]
[336389183,1724801440783,-500.0,0.00010958,2]
[336389185,1724801440792,-500.0,0.00010958,2]
[336389187,1724801440803,-375.66773714,0.00010958,2]
[336389189,1724801440812,-500.0,0.00010958,2]
[336389191,1724801440821,-500.0,0.00010958,2]
[336389193,1724801440831,-500.0,0.00010958,2]
[336389194,1724801440842,-500.0,0.00010958,2]
[336389196,1724801440852,-178.01,0.00010959,2]
[336389198,1724801440861,-1500.0,0.00010959,2]
[336389200,1724801440871,-250.0,0.00010959,2]
[336389203,1724801440882,-175.42,0.00010959,2]
[336389205,1724801440891,-150.0,0.00010959,2]
[336389207,1724801440900,-150.0,0.00010961,2]
[336389209,1724801440910,-300.70201465,0.00010975,2]
[336389211,1724801440919,-1000.0,0.00010988,2]
[336389213,1724801440928,-266.84672263,0.00010989,2]
[336389215,1724801440938,-152.62,0.0001099,2]
[336389217,1724801440948,-152.62,0.0001099,2]
[336389219,1724801440958,-152.62,0.0001099,2]
[336389221,1724801440967,-152.62,0.0001099,2]
[336389223,1724801440977,-150.0,0.00010996,2]
[336389225,1724801440987,-150.0,0.00010997,2]
[336389227,1724801440996,-150.0,0.00010997,2]
[336389229,1724801441006,-266.63737733,0.00010997,2]